bitfinex-derivatives/quotes_ETHF0:USTF0_20250322
["timestamp","ask_amount","ask_price","bid_price","bid_amount"]
[1742637060423,12.29936,2001.7,2001.6,2.84123003]
[1742637060714,1.294,2001.7,2001.6,2.84123003]
[1742637062519,1.294,2001.7,2001.6,3.61703003]
[1742637063522,0.99951,2001.8,2001.7,0.99953]
[1742637063820,12.33221,2001.8,2001.7,2.92963003]
[1742637064525,12.33221,2001.8,2001.7,2.92956719]
[1742637064720,12.33221,2001.8,2001.7,2.38913]
[1742637064920,12.33221,2001.8,2001.7,1.3896]
[1742637067627,4.5869,2001.8,2001.7,2.92963787]
[1742637067816,5.58638,2001.8,2001.7,2.92963787]
[1742637069027,0.7328,2002.0,2001.9,0.99943]
[1742637069330,2.0386,2002.0,2001.9,0.99943]
[1742637069717,2.0386,2002.0,2001.9,2.39413]
[1742637070427,3.038,2002.0,2001.9,2.39413]
[1742637072423,0.99927,2002.3,2002.2,0.99926]
[1742637072629,2.36467,2002.3,2002.2,0.99926]
[1742637072825,11.3712,2002.3,2002.2,4.20706]
[1742637073031,1.3654,2002.3,2002.2,4.20706]
[1742637073415,1.3654,2002.3,2002.2,5.54536]
[1742637073620,2.36463,2002.3,2002.2,5.54536]
[1742637073822,2.36463,2002.3,2002.2,1.3383]
[1742637074529,12.37043,2002.3,2002.2,1.3383]
[1742637074722,0.99933,2002.1,2002.0,2.38425]
[1742637074922,11.00513,2002.1,2002.0,2.38425]
[1742637075123,11.00513,2002.1,2002.0,1.3849]
[1742637075424,12.35643,2002.1,2002.0,1.3849]
[1742637075821,11.3571,2002.1,2002.0,2.38428]
[1742637076022,0.7354,2002.2,2002.1,0.99933]
[1742637076228,10.7412,2002.2,2002.1,2.38423]
[1742637076526,11.74048,2002.2,2002.1,2.38423]
[1742637076721,0.7354,2002.2,2002.1,2.38423]
[1742637077122,2.0867,2002.2,2002.1,2.38423]
[1742637077325,3.08598,2002.2,2002.1,2.38423]
[1742637077626,13.09178,2002.2,2002.1,1.3849]
[1742637081834,13.09178,2002.2,2001.6,9.0798]
[1742637081835,17.85076,2002.2,2001.6,9.0798]
[1742637082040,11.00527,2001.9,2001.8,0.99948]
[1742637082535,3.26,2002.0,2001.6,3.2078]
[1742637082536,6.41108,2002.0,2001.9,0.99943]
[1742637082729,5.01988,2002.0,2001.9,0.99943]
[1742637083039,15.02568,2002.0,2001.9,0.99943]
[1742637083736,14.26518,2002.0,2001.9,0.99943]
[1742637085537,4.25938,2002.0,2001.9,0.99943]
[1742637086036,4.7037,2002.2,2002.1,0.99933]
[1742637086237,5.70298,2002.2,2002.1,0.99933]
[1742637086446,0.99935,2002.1,2002.0,1.77174]
[1742637086744,10.0058,2002.1,2002.0,1.77174]
[1742637086945,0.99933,2002.1,2002.0,1.77174]
[1742637087241,0.99938,2002.0,2001.9,4.2072]
[1742637088146,0.99938,2002.0,2001.9,3.2078]
[1742637088334,0.99943,2001.9,2001.8,0.7414]
[1742637088643,11.75213,2001.9,2001.8,1.74087]
[1742637088837,1.74633,2001.9,2001.8,1.74087]
[1742637089443,0.9995,2001.8,2001.7,0.99948]
[1742637089634,11.75216,2001.9,2001.8,0.99948]
[1742637090041,3.26,2002.1,2002.0,0.99938]
[1742637090346,3.9735,2002.1,2002.0,0.99938]
[1742637090649,0.99938,2002.0,2001.9,4.2072]
[1742637090945,11.00518,2002.0,2001.9,4.2072]
[1742637091145,0.99938,2002.0,2001.9,4.2072]
[1742637092755,11.00518,2002.0,2001.9,3.2078]
[1742637092944,11.00518,2002.0,2001.9,4.20723]
[1742637093245,11.00518,2002.0,2001.9,3.2078]
[1742637093444,11.00518,2002.0,2001.9,4.20723]
[1742637094340,11.00518,2002.0,2001.9,3.2078]
[1742637095046,0.99948,2001.9,2001.8,0.99945]
[1742637095251,11.00528,2001.9,2001.8,0.99945]
[1742637095545,0.7135,2002.1,2002.0,0.99938]
[1742637095841,4.0195,2002.2,2002.1,0.99933]
[1742637096241,14.0253,2002.2,2002.1,0.99933]
[1742637096845,11.76561,2002.2,2002.1,0.99933]
[1742637097444,0.99933,2002.1,2002.0,4.96503]
[1742637100356,2.26573,2002.1,2002.0,6.23673]
[1742637102452,0.99929,2002.2,2002.0,5.77722677]
[1742637102647,2.39769,2002.2,2002.1,2.37308]
[1742637102953,1.3984,2002.2,2002.1,2.37308]
[1742637103150,0.71697962,2002.4,2002.1,1.3738]
[1742637103358,11.00505,2002.3,2002.2,2.112]
[1742637103656,12.40345,2002.3,2002.2,2.112]
[1742637104250,12.40345,2002.3,2002.2,3.11124]
[1742637105456,11.4042,2002.3,2002.2,3.11124]
[1742637105948,12.40343,2002.3,2002.2,1.3738]
[1742637106555,12.40343,2002.3,2002.2,2.37308]
[1742637106754,12.40343,2002.3,2002.2,1.3738]
[1742637107260,12.40343,2002.3,2002.2,2.37308]
[1742637108755,15.66243,2002.3,2002.2,1.3738]
[1742637108959,0.99933,2002.1,2002.0,1.3185]
[1742637109150,11.00513,2002.1,2002.0,1.3185]
[1742637109652,12.36413,2002.1,2002.0,1.3185]
[1742637110458,12.36413,2002.1,2002.0,2.31788]
[1742637112059,12.36413,2002.1,2002.0,1.3185]
[1742637112361,0.99938,2002.0,2001.9,4.20719]
[1742637112552,13.04798,2002.0,2001.9,4.20719]
[1742637113263,16.30698,2002.0,2001.9,3.2078]
[1742637113558,15.3076,2002.0,2001.9,4.20723]
[1742637113956,11.3172,2002.0,2001.9,4.20723]
[1742637114163,11.3172,2002.0,2001.9,5.52293]
[1742637115062,12.31658,2002.0,2001.9,5.52293]
[1742637115271,0.99943,2001.9,2001.8,0.99944]
[1742637115466,13.12613,2001.9,2001.8,1.3157]
[1742637119164,0.99953,2001.7,2001.6,3.9797]
[1742637119358,11.00533,2001.7,2001.6,3.9797]
[1742637119552,0.99953,2001.7,2001.6,3.9797]
[1742637119754,0.99953,2001.7,2001.6,4.97928]
[1742637120264,0.99953,2001.7,2001.6,3.9797]
[1742637120465,12.32463,2001.7,2001.6,5.04854368]
[1742637120961,12.32463,2001.7,2001.6,4.5081]
[1742637123363,12.32463,2001.7,2001.6,1.3003]
[1742637123551,11.00533,2001.7,2001.6,2.29988]
[1742637123757,12.33463,2001.7,2001.6,1.3003]
[1742637127565,2.32883,2001.7,2001.6,2.29988]
[1742637127866,2.32883,2001.7,2001.6,1.3003]
[1742637130074,12.33463,2001.7,2001.6,1.3003]
[1742637131162,0.99963,2001.5,2001.4,3.9778]
[1742637131373,11.00543,2001.5,2001.4,3.2078]
[1742637131580,0.99963,2001.5,2001.4,3.2078]
[1742637132571,2.27313,2001.5,2001.4,3.2078]
[1742637132962,2.27313,2001.5,2001.4,4.5965]
[1742637138277,0.99973,2001.3,2001.2,0.7109]
[1742637138573,0.99978,2001.2,2001.1,3.2078]
[1742637138773,3.08628,2001.2,2001.1,3.2078]
[1742637140673,13.09208,2001.2,2001.1,3.2078]
[1742637141973,13.09208,2001.2,2001.1,4.5618]
[1742637143374,16.35108,2001.2,2001.1,5.56163]
[1742637143679,16.35108,2001.2,2001.1,4.5618]
[1742637144477,16.35108,2001.2,2001.1,3.2078]
[1742637145482,16.35108,2001.2,2001.1,4.5311]
[1742637148672,0.99983,2001.1,2000.8,3.2078]
[1742637148875,11.00568,2001.0,2000.9,1.2808]
[1742637149270,2.36378,2001.0,2000.9,1.2808]
[1742637153177,2.36378,2001.0,2000.9,2.28073]
[1742637153579,12.36958,2001.0,2000.9,1.2808]
[1742637154180,12.36958,2001.0,2000.6,2.27986]
[1742637154181,1.00003,2000.7,2000.6,2.27986]
[1742637154483,11.00583,2000.7,2000.6,2.27986]
[1742637154671,1.00003,2000.7,2000.6,2.27986]
[1742637155082,2.39673,2000.7,2000.6,2.27986]
[1742637155279,12.40253,2000.7,2000.6,1.2798]
[1742637155670,1.00007,2000.6,2000.5,3.2078]
[1742637155877,13.13067,2000.6,2000.5,4.4876]
[1742637156981,16.38967,2000.6,2000.5,3.2078]
[1742637157784,1.00012,2000.5,2000.4,1.2876]
[1742637157975,12.36992,2000.5,2000.4,1.2876]
[1742637159184,12.36992,2000.5,2000.4,2.28777]
[1742637159384,1.364,2000.5,2000.4,2.28777]
[1742637160987,2.36412,2000.5,2000.4,2.28777]
[1742637161180,1.364,2000.5,2000.4,2.28777]
[1742637161884,2.36412,2000.5,2000.4,2.28777]
[1742637162583,2.36412,2000.5,2000.4,1.2876]
[1742637162787,3.11472,2000.5,2000.4,1.2876]
[1742637163180,3.11472,2000.5,2000.4,2.28777]
[1742637164391,2.36412,2000.5,2000.4,2.28777]
[1742637165686,1.364,2000.5,2000.4,2.28777]
[1742637166083,3.259,2000.6,2000.5,1.00012]
[1742637166280,4.6162,2000.6,2000.5,5.50652]
[1742637166482,1.3572,2000.6,2000.5,5.50652]
[1742637167285,2.35727,2000.6,2000.5,5.50652]
[1742637167985,12.36307,2000.6,2000.5,4.5064]
[1742637168180,1.00012,2000.5,2000.4,1.00013]
[1742637168385,13.14042,2000.5,2000.4,1.2986]
[1742637168591,3.13462,2000.5,2000.4,1.2986]
[1742637168981,13.14042,2000.5,2000.4,1.2986]
[1742637169384,1.00017,2000.4,2000.3,1.00019]
[1742637169679,13.11847,2000.4,2000.3,2.31869]
[1742637169993,12.1183,2000.4,2000.3,2.31869]
[1742637170989,13.11847,2000.4,2000.3,2.31869]
[1742637171388,13.11847,2000.4,2000.3,1.3185]
[1742637171689,1.00022,2000.3,2000.2,3.9474]
[1742637171885,12.30672,2000.3,2000.2,5.3102]
[1742637172691,12.30672,2000.3,2000.2,6.31047]
[1742637173483,11.3065,2000.3,2000.2,6.31047]
[1742637173683,12.30672,2000.3,2000.2,6.31047]
[1742637173883,12.30672,2000.3,2000.2,5.3102]
[1742637174085,12.30672,2000.3,2000.2,4.20807]
[1742637175689,11.3065,2000.3,2000.2,4.20807]
[1742637175886,1.3007,2000.3,2000.2,4.20807]
[1742637178288,1.00016,2000.5,2000.2,3.2078]
[1742637178494,3.26,2000.5,2000.4,1.00017]
[1742637178989,3.26,2000.5,2000.4,2.37747]
[1742637179592,4.26012,2000.5,2000.4,2.37747]
[1742637180096,14.26592,2000.5,2000.4,2.37747]
[1742637180295,13.2658,2000.5,2000.4,2.37747]
[1742637180590,3.26,2000.5,2000.4,2.37747]
[1742637181197,4.26012,2000.5,2000.4,2.37747]
[1742637181384,15.01142,2000.5,2000.4,2.37747]
[1742637181695,1.00017,2000.4,2000.3,1.00019]
[1742637181995,1.00017,2000.4,2000.3,2.29789]
[1742637181996,11.74517,2000.4,2000.3,2.29789]
[1742637183191,1.00022,2000.3,2000.2,4.20804]
[1742637183390,11.00602,2000.3,2000.2,4.74969227]
[1742637183791,11.00602,2000.3,2000.2,6.15389227]
[1742637184398,10.0058,2000.3,2000.2,6.15389227]
[1742637184793,0.7392,2000.4,2000.3,1.00022]
[1742637185096,1.73937,2000.4,2000.3,2.94622783]
[1742637185294,11.74517,2000.4,2000.3,0.54180783]
[1742637185996,11.74517,2000.4,2000.3,2.94622783]
[1742637186495,11.74517,2000.4,2000.3,0.54180783]
[1742637186886,11.74517,2000.4,2000.3,1.54202783]
[1742637187089,11.74517,2000.4,2000.3,2.90222783]
[1742637188000,11.74517,2000.4,2000.3,0.54180783]
[1742637188500,1.00022,2000.3,2000.2,5.56824]
[1742637188703,11.00602,2000.3,2000.2,6.11066355]
[1742637188899,11.00602,2000.3,2000.2,5.11042355]
[1742637189093,11.00602,2000.3,2000.2,3.2078]
[1742637189409,11.00602,2000.3,2000.2,0.5424854]
[1742637189895,11.00602,2000.3,2000.2,1.5427554]
[1742637190601,12.35832,2000.3,2000.2,2.9406554]
[1742637191093,12.35832,2000.3,2000.2,2.94072419]
[1742637192187,12.35832,2000.3,2000.2,1.94045419]
[1742637192998,12.35832,2000.3,2000.2,1.94091242]
[1742637193199,12.35832,2000.3,2000.2,2.94118242]
[1742637193392,12.35832,2000.3,2000.2,1.94091242]
[1742637193696,12.35832,2000.3,2000.2,0.54301242]
[1742637193900,15.61832,2000.3,2000.2,1.54328242]
[1742637194894,15.61832,2000.3,2000.2,1.54352045]
[1742637195393,15.61832,2000.3,2000.2,0.54325045]
[1742637195793,15.61832,2000.3,2000.2,1.83675045]
[1742637196298,2.73129,2000.7,2000.2,5.91373868]
[1742637196511,11.4098,2000.5,2000.3,3.27435045]
[1742637196706,10.0058,2000.5,2000.4,1.84064227]
[1742637196890,1.00016,2000.5,2000.4,2.84080227]
[1742637197705,1.76621,2000.6,2000.5,1.00012]
[1742637198002,11.77201,2000.6,2000.5,2.29762]
[1742637200508,11.77201,2000.6,2000.5,1.2975]
[1742637202402,11.77201,2000.6,2000.5,2.29762]
[1742637202903,11.77201,2000.6,2000.5,1.2975]
[1742637203513,1.00012,2000.5,2000.4,1.00013]
[1742637203712,1.00017,2000.4,2000.3,1.00019]
[1742637203912,11.72807,2000.4,2000.3,1.54350725]
[1742637204103,11.72807,2000.4,2000.3,2.91630725]
[1742637204303,11.72807,2000.4,2000.3,2.91629361]
[1742637204701,10.7279,2000.4,2000.3,2.91629361]
[1742637204908,1.00016,2000.5,2000.4,1.00017]
[1742637205109,1.00016,2000.5,2000.4,3.67607361]
[1742637205316,11.00596,2000.5,2000.4,3.67607361]
[1742637206324,11.00596,2000.5,2000.4,1.91610361]
[1742637206626,11.72386,2000.5,2000.4,1.3728]
[1742637210419,13.11976,2000.5,2000.4,1.3728]
[1742637210627,1.00017,2000.4,2000.3,1.00019]
[1742637210829,12.40187,2000.4,2000.3,2.86615759]
[1742637211029,2.39607,2000.4,2000.3,2.86615759]
[1742637211226,2.39607,2000.4,2000.3,1.86596759]
[1742637211524,1.00032,2000.1,2000.0,4.20814]
[1742637211831,1.00032,2000.1,2000.0,2.41452547]
[1742637212329,1.00032,2000.1,2000.0,5.62232547]
[1742637212529,1.73091,2000.2,2000.1,1.00032]
[1742637212728,1.73091,2000.2,2000.1,2.41450547]
[1742637213421,11.73671,2000.2,2000.1,1.41418547]
[1742637213623,1.00032,2000.1,2000.0,4.20814]
[1742637213823,2.36292,2000.1,2000.0,6.9250526]
[1742637214020,2.36292,2000.1,2000.0,5.9247126]
[1742637214435,12.36872,2000.1,2000.0,6.9250926]
[1742637214834,12.36872,2000.1,2000.0,5.9247126]
[1742637215130,12.36872,2000.1,2000.0,6.9250926]
[1742637215531,12.36872,2000.1,2000.0,6.92468967]
[1742637216626,12.36872,2000.1,2000.0,5.92430967]
[1742637217031,12.36872,2000.1,2000.0,5.05470372]
[1742637217534,12.36872,2000.1,2000.0,5.05467103]
[1742637217920,12.36872,2000.1,2000.0,0.54347103]
[1742637218731,1.00038,2000.0,1999.9,1.3952]
[1742637218932,3.13858,2000.0,1999.9,1.93863364]
[1742637219133,13.14438,2000.0,1999.9,1.93863364]
[1742637219333,13.14438,2000.0,1999.9,1.93853361]
[1742637219528,13.14438,2000.0,1999.9,2.93896361]
[1742637219729,12.144,2000.0,1999.9,3.80812966]
[1742637219934,13.14438,2000.0,1999.9,3.80812966]
[1742637220125,13.14438,2000.0,1999.9,5.28502966]
[1742637220840,13.14438,2000.0,1999.9,4.41586361]
[1742637221238,13.14438,2000.0,1999.9,7.62366361]
[1742637221634,12.144,2000.0,1999.9,7.62366361]
[1742637221840,1.3943,2000.0,1999.9,8.49292969]
[1742637223131,1.3943,2000.0,1999.9,8.49277628]
[1742637223332,2.39468,2000.0,1999.9,8.49277628]
[1742637223533,1.3943,2000.0,1999.9,7.62357857]
[1742637224929,2.39468,2000.0,1999.9,7.08033]
[1742637225134,2.39468,2000.0,1999.9,7.623518]
[1742637226033,12.40048,2000.0,1999.9,5.872888]
[1742637226233,12.40048,2000.0,1999.9,1.938388]
[1742637226438,1.00048,1999.8,1999.7,3.2078]
[1742637226639,1.00048,1999.8,1999.7,4.62006389]
[1742637226845,1.00048,1999.8,1999.7,3.2078]
[1742637227037,1.00048,1999.8,1999.7,4.62007856]
[1742637227237,1.00048,1999.8,1999.7,5.62056856]
[1742637228043,2.27508,1999.8,1999.7,6.90636856]
[1742637228735,2.27508,1999.8,1999.7,6.90624058]
[1742637230346,2.27508,1999.8,1999.7,6.03722484]
[1742637230639,2.27508,1999.8,1999.7,5.49409]
[1742637230837,2.27508,1999.8,1999.7,6.03740085]
[1742637232341,12.28088,1999.8,1999.7,3.75111085]
[1742637232548,12.28088,1999.8,1999.7,6.06684085]
[1742637233647,3.259,2000.0,1999.9,1.00043]
[1742637233952,4.25938,2000.0,1999.9,1.00043]
[1742637234145,1.00043,1999.9,1999.8,2.31564]
[1742637234341,12.37243,1999.9,1999.8,2.85887584]
[1742637234538,12.37243,1999.9,1999.8,1.85843761]
[1742637234740,11.372,1999.9,1999.5,3.2078]
[1742637234941,1.00073,1999.3,1999.2,5.2708]
[1742637235146,11.00653,1999.3,1999.2,6.68411227]
[1742637235346,3.259,1999.4,1999.3,1.00073]
[1742637235645,5.60548,1999.4,1999.3,0.54358164]
[1742637235841,1.00073,1999.3,1999.2,6.23335]
[1742637236042,1.00073,1999.3,1999.2,5.02817261]
[1742637236043,12.35233,1999.3,1999.2,5.02817261]
[1742637236243,12.35233,1999.3,1999.2,3.2078]
[1742637236945,1.00088,1999.0,1998.9,44.0078]
[1742637237248,1.00098,1998.8,1998.7,4.4848]
[1742637237445,1.00103,1998.7,1998.6,11.50569155]
[1742637237636,15.61163,1998.7,1998.6,11.50569155]
[1742637238441,15.61163,1998.7,1998.4,63.18395259]
[1742637238442,1.00113,1998.5,1998.4,44.0078]
[1742637238743,1.00123,1998.3,1998.2,3.2078]
[1742637238945,1.00132,1998.2,1998.0,12.77999155]
[1742637239251,3.259,1998.3,1998.2,1.00128]
[1742637239750,13.2658,1998.3,1998.1,44.7558]
[1742637239936,11.2782,1998.2,1998.0,11.50569155]
[1742637240137,1.00133,1998.1,1998.0,12.50704155]
[1742637240342,3.25841,1998.4,1998.0,52.30569155]
[1742637240343,0.7554,1998.4,1998.0,52.30569155]
[1742637240646,4.0027,1998.8,1998.7,1.00103]
[1742637240843,4.0027,1998.8,1998.6,4.20885]
[1742637241147,10.0058,1998.5,1998.2,3.2078]
[1742637241341,10.0058,1998.3,1998.2,4.20905]
[1742637241542,13.2658,1998.3,1998.2,3.2078]
[1742637241745,1.00128,1998.2,1998.1,1.00133]
[1742637242049,1.00128,1998.2,1998.0,11.50569155]
[1742637242050,11.00713,1998.1,1998.0,11.50569155]
[1742637242248,16.99842,1998.1,1998.0,11.50569155]
[1742637242443,22.70622,1998.1,1998.0,7.50225567]
[1742637242747,1.00153,1997.7,1997.6,3.2078]
[1742637243052,10.0058,1997.7,1997.6,4.20938]
[1742637243242,0.0074985,1997.8,1997.7,1.00153]
[1742637243442,0.0074985,1997.8,1997.7,2.39103]
[1742637243647,3.2078,1998.5,1998.2,1.00128]
[1742637243943,10.0058,1998.5,1998.4,1.00118]
[1742637244137,3.273,1998.6,1998.5,1.00113]
[1742637244339,10.0058,1998.6,1998.5,2.39063]
[1742637244643,3.273,1998.8,1998.7,1.00103]
[1742637244847,10.0132985,1998.7,1998.6,4.20888]
[1742637245051,11.0143285,1998.7,1998.6,4.20888]
[1742637245348,0.0074985,1998.7,1998.6,4.20888]
[1742637245850,6.5008,1999.1,1999.0,1.00088]
[1742637246045,16.5066,1999.1,1998.9,1.00089]
[1742637246245,11.00679,1998.8,1998.6,3.2078]
[1742637246451,4.29396,1998.9,1998.8,1.00098]
[1742637246643,3.293,1998.9,1998.8,1.00098]
[1742637246843,13.2988,1998.9,1998.8,1.00098]
[1742637247039,14.29973,1998.9,1998.8,1.00098]
[1742637247243,10.0058,1998.9,1998.8,1.00098]
[1742637247849,4.6689985,1999.0,1998.9,1.00093]
[1742637247850,0.0074985,1999.0,1998.9,1.00093]
[1742637248048,5.94689,2000.0,1998.9,3.299]
[1742637248347,10.0058,1999.4,1999.3,4.20853]
[1742637248749,1.00081,1999.2,1999.1,4.20861]
[1742637249053,11.00661,1999.2,1999.1,1.00081]
[1742637251151,10.0058,1999.2,1999.1,4.20861]
[1742637252142,0.0074985,1999.3,1999.2,1.00078]
[1742637252347,10.0132985,1999.3,1999.2,1.00078]
[1742637252849,11.0140285,1999.3,1999.2,1.00078]
[1742637253053,12.3595285,1999.3,1999.2,1.00078]
[1742637253354,11.3587985,1999.3,1999.2,1.00078]
[1742637254155,1.3529985,1999.3,1999.2,1.00078]
[1742637254353,11.3587985,1999.3,1999.2,1.00078]
[1742637254558,10.0132985,1999.3,1999.2,4.20858]
[1742637254760,0.0074985,1999.3,1999.2,4.20858]
[1742637256764,11.0140285,1999.3,1999.2,4.20858]
[1742637256956,14.3070285,1999.3,1999.2,1.00078]
[1742637257652,14.3070585,1999.3,1999.2,1.00078]
[1742637258362,13.3062985,1999.3,1999.2,1.00078]
[1742637258853,13.3062985,1999.3,1999.2,4.20858]
[1742637259754,14.6997985,1999.3,1999.2,1.00078]
[1742637260159,15.7005285,1999.3,1999.2,1.00078]
[1742637260555,14.6997985,1999.3,1999.2,1.00078]
[1742637261664,15.7005285,1999.3,1999.2,1.00078]
[1742637261966,14.6997985,1999.3,1999.2,4.20858]
[1742637262958,15.7005285,1999.3,1999.2,4.20858]
[1742637263158,14.6997985,1999.3,1999.2,4.20858]
[1742637263368,13.3062985,1999.3,1999.2,4.20858]
[1742637263867,13.3062985,1999.3,1999.2,4.95638]
[1742637264568,14.3070285,1999.3,1999.2,4.95638]
[1742637264768,15.6001285,1999.3,1999.2,4.95638]
[1742637265862,15.6001285,1999.3,1999.2,1.74858]
[1742637266467,14.5993985,1999.3,1999.2,1.74858]
[1742637267369,13.3062985,1999.3,1999.2,4.95638]
[1742637267670,3.3004985,1999.3,1999.2,4.95638]
[1742637267870,0.0074985,1999.3,1999.2,4.95638]
[1742637268858,2.73129,1999.9,1999.8,1.00048]
[1742637269075,6.01529,1999.9,1999.8,1.00048]
[1742637269274,16.02109,1999.9,1999.8,1.00048]
[1742637269672,16.02009,1999.9,1999.8,1.00048]
[1742637270066,16.02009,1999.9,1999.8,2.26928]
[1742637270672,17.41099,1999.9,1999.8,2.26928]
[1742637272063,17.41099,1999.9,1999.8,2.95548]
[1742637272564,11.3967,1999.9,1999.8,2.95548]
[1742637272764,10.0058,1999.9,1999.8,2.95548]
[1742637275865,11.00623,1999.9,1999.8,1.00048]
[1742637276069,12.31023,1999.9,1999.8,1.00048]
[1742637276462,11.3098,1999.9,1999.8,2.37938]
[1742637276669,1.304,1999.9,1999.8,2.37938]
[1742637276869,3.2874985,2000.0,1999.9,1.00043]
[1742637277071,14.2936785,2000.0,1999.9,3.02883]
[1742637277271,13.2932985,2000.0,1999.9,3.02883]
[1742637277471,14.2936785,2000.0,1999.9,3.02883]
[1742637277665,16.40310258,2000.0,1999.9,3.02883]
[1742637277866,15.40272258,2000.0,1999.9,3.02883]
[1742637278065,16.40310258,2000.0,1999.9,3.02883]
[1742637280067,0.81292258,2000.0,1999.9,6.23663]
[1742637280374,0.0074985,2000.0,1999.9,6.23663]
[1742637283674,1.3143985,2000.0,1999.9,6.23663]
[1742637284086,2.3147785,2000.0,1999.9,6.23663]
[1742637284382,0.0074985,2000.0,1999.9,6.23663]
[1742637286283,2.73129,2000.8,2000.0,2.50082]
[1742637286584,2.30704,2000.5,2000.4,3.2078]
[1742637286784,2.30704,2000.5,2000.4,4.5975]
[1742637287081,12.31284,2000.5,2000.4,1.3897]
[1742637287388,12.31284,2000.5,2000.4,2.38987]
[1742637287878,12.31284,2000.5,2000.4,1.3897]
[1742637288074,1.00022,2000.3,2000.2,0.0074985]
[1742637288276,11.00602,2000.3,2000.2,1.3317985]
[1742637288775,11.00602,2000.3,2000.2,2.3320685]
[1742637289975,10.0058,2000.3,2000.2,2.3320685]
[1742637290575,11.3718,2000.3,2000.2,2.3320685]
[1742637291188,12.37202,2000.3,2000.2,2.3320685]
[1742637293277,11.3718,2000.3,2000.2,2.3320685]
[1742637294780,12.37202,2000.3,2000.2,2.3320685]
[1742637296584,11.3718,2000.3,2000.2,2.3320685]
[1742637296793,12.37202,2000.3,2000.2,2.3320685]
[1742637297284,11.3718,2000.3,2000.2,2.3320685]
[1742637299281,10.0058,2000.3,2000.2,2.3320685]
[1742637299683,1.4039,2000.4,2000.3,1.00022]
[1742637299983,1.4039,2000.4,2000.3,3.08032]
[1742637300188,11.4097,2000.4,2000.3,3.08032]
[1742637300388,10.0058,2000.4,2000.3,3.08032]
[1742637301082,5.66403,2000.5,2000.4,1.00017]
[1742637301278,15.66983,2000.5,2000.4,1.3985]
[1742637301486,15.66983,2000.5,2000.3,0.6816]
[1742637301487,1.00017,2000.4,2000.3,0.6816]
[1742637301792,12.40987,2000.4,2000.3,0.6816]
[1742637302192,12.40987,2000.4,2000.3,2.0801]
[1742637302387,12.40987,2000.4,2000.3,3.08032]
[1742637303794,12.40987,2000.4,2000.3,2.0801]
[1742637305196,12.40987,2000.4,2000.3,3.08032]
[1742637306087,13.21555394,2000.4,2000.3,2.0801]
[1742637308094,12.40987,2000.4,2000.3,2.0801]
[1742637309690,1.00022,2000.3,2000.2,0.0074985]
[1742637309889,1.00043,1999.9,1999.8,3.8684]
[1742637310085,1.00043,1999.9,1999.8,5.2726]
[1742637310290,1.00058,1999.6,1999.5,3.2078]
[1742637310491,10.0058,1999.3,1999.1,3.2078]
[1742637310687,10.0058,1999.3,1999.2,2.90780112]
[1742637310888,1.00075,1999.3,1999.2,1.3635]
[1742637311087,1.00078,1999.2,1999.1,3.2152985]
[1742637311297,18.33047,1999.2,1999.1,0.0074985]
[1742637311589,1.00108,1998.6,1998.5,1.67943]
[1742637311783,11.00693,1998.5,1998.4,3.2078]
[1742637311988,1.00118,1998.4,1998.3,12.96650393]
[1742637312184,1.00118,1998.4,1998.3,11.68890393]
[1742637312185,15.66128,1998.4,1998.3,11.68890393]
[1742637312385,12.38928,1998.4,1998.3,11.68890393]
[1742637312589,1.00123,1998.3,1998.2,3.2078]
[1742637312789,11.00703,1998.3,1998.2,0.0074985]
[1742637312992,18.32842,1998.3,1998.2,0.0074985]
[1742637313297,1.00141,1998.0,1997.7,11.68890393]
[1742637313593,11.00723,1997.9,1997.8,3.2078]
[1742637313893,11.00723,1997.9,1997.7,11.68890393]
[1742637313894,11.00728,1997.8,1997.7,11.68890393]
[1742637314104,15.67758,1997.8,1997.7,11.68890393]
[1742637314691,20.90887,1997.8,1997.7,11.68890393]
[1742637314891,1.00153,1997.7,1997.6,15.34842057]
[1742637315094,4.30053,1997.7,1997.6,15.34842057]
[1742637315294,3.73282,1997.7,1997.6,15.34842057]
[1742637315496,7.03482,1997.7,1997.6,1.0090785]
[1742637315693,7.03482,1997.7,1997.6,0.0074985]
[1742637316101,7.03482,1997.7,1997.6,3.2152985]
[1742637316302,7.03482,1997.7,1997.6,0.0074985]
[1742637316797,12.74262,1997.7,1997.6,0.0074985]
[1742637317099,1.00194,1996.9,1996.7,4.4911]
[1742637317400,3.311,1996.9,1996.8,1.00198]
[1742637317601,3.316,1997.1,1997.0,1.00188]
[1742637317802,3.316,1997.1,1997.0,4.20968]
[1742637318001,1.00183,1997.1,1997.0,3.2078]
[1742637318303,3.32,1997.3,1997.0,4.20965]
[1742637318507,1.00183,1997.1,1997.0,3.2078]
[1742637318698,1.00188,1997.0,1996.9,0.0074985]
[1742637319000,4.32388,1997.0,1996.9,0.0074985]
[1742637319499,7.05517,1997.0,1996.9,8.5e-06]
[1742637319699,9.55517,1997.0,1996.9,8.5e-06]
[1742637319906,55.83887,1997.0,1996.9,8.5e-06]
[1742637320100,55.91785964,1997.0,1996.9,8.5e-06]
[1742637320295,57.19675964,1997.0,1996.9,8.5e-06]
[1742637320503,57.11777,1997.0,1996.9,8.5e-06]
[1742637320697,1.00203,1996.7,1996.6,7.7e-06]
[1742637320909,3.333,1996.8,1996.7,1.00201]
[1742637321108,49.00229,1997.0,1996.7,40.8]
[1742637321295,1.00198,1996.8,1996.7,41.80199]
[1742637321500,3.335,1997.0,1996.7,40.8]
[1742637321701,9.0475,1997.0,1996.7,40.8]
[1742637321997,1.00198,1996.8,1996.7,40.8]
[1742637322204,1.00203,1996.7,1996.6,7.7e-06]
[1742637322506,1.00233,1996.1,1996.0,3.2078]
[1742637322804,1.00233,1996.1,1995.1,52.143]